fUSD/lending_fUSD_20250208
["ID","MTS","AMOUNT","RATE_DAILY","PERIOD"]
[352227585,1739010640273,-500.0,0.000105,3]
[352227587,1739010640282,-700.0,0.000106,3]
[352227589,1739010640291,-1000.0,0.000107,3]
[352227591,1739010640300,-150.0,0.00010726,2]
[352227593,1739010640310,-150.0,0.00010732,2]
[352227623,1739010640584,-150.0,0.00010737,2]
[352227625,1739010640593,-150.0,0.00010738,2]
[352227627,1739010640602,-150.0,0.0001074,2]
[352227629,1739010640612,-150.0,0.00010746,2]
[352227631,1739010640621,-150.0,0.00010748,2]
[352227633,1739010640631,-150.0,0.00010752,2]
[352227635,1739010640641,-150.0,0.00010755,2]
[352227637,1739010640650,-150.0,0.00010757,2]
[352227639,1739010640658,-150.0,0.00010757,2]
[352227641,1739010640667,-150.0,0.00010762,2]
[352227643,1739010640676,-150.0,0.00010765,2]
[352227645,1739010640686,-150.0,0.00010766,2]
[352227647,1739010640696,-150.0,0.00010766,2]
[352227649,1739010640705,-150.0,0.00010766,2]
[352227651,1739010640714,-150.0,0.00010766,2]
[352227653,1739010640723,-150.0,0.00010767,2]
[352227655,1739010640731,-150.0,0.0001077,2]
[352227657,1739010640741,-150.0,0.00010771,2]
[352227659,1739010640749,-150.0,0.00010775,2]
[352227661,1739010640759,-150.0,0.00010776,2]
[352227663,1739010640768,-150.0,0.00010777,2]
[352227665,1739010640777,-150.0,0.00010778,2]
[352227667,1739010640787,-150.0,0.0001078,2]
[352227669,1739010640796,-150.0,0.00010787,2]
[352227671,1739010640805,-150.0,0.00010788,2]
[352227673,1739010640814,-150.0,0.00010794,2]
[352227675,1739010640823,-150.0,0.00010794,2]
[352227677,1739010640831,-150.0,0.00010795,2]
[352227679,1739010640840,-150.0,0.000108,2]
[352227681,1739010640851,-150.0,0.000108,2]
[352227683,1739010640860,-191.65,0.000108,2]
[352227685,1739010640869,-1200.0,0.000108,3]
[352227687,1739010640878,-2036.0,0.000108,3]
[352227689,1739010640887,-150.0,0.00010801,2]
[352227691,1739010640896,-150.0,0.00010801,2]
[352227693,1739010640905,-150.0,0.00010801,2]
[352227695,1739010640914,-150.0,0.00010804,2]
[352227697,1739010640923,-150.0,0.00010806,2]
[352227699,1739010640932,-150.0,0.00010808,2]
[352227700,1739010640942,-150.0,0.00010811,2]
[352227702,1739010640951,-150.0,0.00010815,2]
[352227704,1739010640961,-150.0,0.00010816,2]
[352227707,1739010640970,-150.0,0.00010817,2]
[352227709,1739010640980,-150.0,0.00010818,2]
[352227711,1739010640989,-150.0,0.00010819,2]
[352227713,1739010640999,-150.0,0.00010822,2]
[352227715,1739010641008,-150.0,0.00010829,2]
[352227716,1739010641017,-150.0,0.00010834,2]
[352227718,1739010641026,-150.0,0.00010838,2]
[352227721,1739010641035,-150.0,0.00010843,2]
[352227723,1739010641045,-150.0,0.00010847,2]
[352227724,1739010641055,-150.0,0.00010847,2]
[352227726,1739010641064,-150.0,0.00010849,2]
[352227729,1739010641073,-150.0,0.00010851,2]
[352227730,1739010641083,-150.0,0.00010852,2]
[352227732,1739010641092,-150.0,0.00010853,2]
[352227735,1739010641102,-150.0,0.00010853,2]
[352227736,1739010641112,-150.0,0.00010853,2]
[352227739,1739010641121,-150.0,0.00010854,2]
[352227741,1739010641130,-150.0,0.00010861,2]
[352227743,1739010641140,-150.0,0.00010862,2]
[352227744,1739010641149,-150.0,0.00010863,2]
[352227746,1739010641158,-150.0,0.00010865,2]
[352227748,1739010641167,-150.0,0.00010869,2]
[352227750,1739010641177,-150.0,0.00010873,2]
[352227752,1739010641186,-150.0,0.00010879,2]
[352227754,1739010641195,-150.0,0.0001088,2]
[352227757,1739010641205,-150.0,0.00010881,2]
[352227758,1739010641215,-150.0,0.00010885,2]
[352227760,1739010641224,-150.0,0.00010888,2]
[352227762,1739010641233,-4000.0,0.0001089,2]
[352227765,1739010641242,-150.0,0.00010895,2]
[352227766,1739010641251,-150.0,0.00010895,2]
[352227769,1739010641261,-150.0,0.00010897,2]
[352227771,1739010641270,-200.0,0.000109,3]
[352227773,1739010641278,-977.49473122,0.000109,2]
[352227775,1739010641287,-160.55279626,0.000109,2]
[352227777,1739010641297,-150.0,0.00010904,2]
[352227778,1739010641307,-150.0,0.00010905,2]
[352227780,1739010641316,-150.0,0.00010909,2]
[352227782,1739010641324,-150.0,0.00010912,2]
[352227785,1739010641334,-150.0,0.00010915,2]
[352227786,1739010641343,-150.0,0.00010915,2]
[352227788,1739010641352,-150.0,0.00010919,2]
[352227790,1739010641361,-150.0,0.00010919,2]
[352227792,1739010641370,-150.0,0.00010925,2]
[352227794,1739010641379,-150.0,0.00010926,2]
[352227796,1739010641390,-150.0,0.0001093,2]
[352227798,1739010641399,-150.0,0.0001093,2]
[352227801,1739010641410,-150.0,0.00010939,2]
[352227802,1739010641419,-150.0,0.00010944,2]
[352227804,1739010641428,-150.0,0.00010945,2]
[352227806,1739010641437,-150.0,0.00010946,2]
[352227808,1739010641447,-150.0,0.00010947,2]
[352227810,1739010641456,-150.0,0.00010952,2]
[352227813,1739010641467,-150.0,0.00010953,2]
[352227815,1739010641476,-150.0,0.00010959,2]
[352227817,1739010641486,-200.15,0.00010963,2]
[352227819,1739010641498,-150.0,0.00010966,2]
[352227821,1739010641507,-150.0,0.00010968,2]
[352227823,1739010641517,-300.0,0.0001097,2]
[352227825,1739010641527,-500.0,0.00010972,2]
[352227827,1739010641537,-500.0,0.00010972,2]
[352227829,1739010641546,-500.0,0.00010972,2]
[352227831,1739010641555,-500.0,0.00010972,2]
[352227833,1739010641564,-500.0,0.00010972,2]
[352227835,1739010641575,-500.0,0.00010972,2]
[352227837,1739010641585,-2572.93,0.00010972,2]
[352227839,1739010641594,-509.19709906,0.00010972,2]
[352227841,1739010641603,-500.0,0.00010972,2]
[352227843,1739010641612,-500.0,0.00010972,2]
[352227845,1739010641621,-500.0,0.00010972,2]
[352227847,1739010641631,-500.0,0.00010972,2]
[352227849,1739010641639,-500.0,0.00010972,2]
[352227851,1739010641648,-500.0,0.00010972,2]
[352227853,1739010641657,-500.0,0.00010972,2]
[352227855,1739010641666,-500.0,0.00010972,2]
[352227857,1739010641676,-1255.07,0.00010972,2]
[352227859,1739010641685,-500.0,0.00010972,2]
[352227861,1739010641694,-501.04611437,0.00010972,2]
[352227863,1739010641703,-500.0,0.00010972,2]
[352227865,1739010641712,-500.0,0.00010972,2]
[352227867,1739010641721,-500.0,0.00010972,2]
[352227869,1739010641730,-500.0,0.00010972,2]
[352227871,1739010641739,-973.24,0.00010972,2]
[352227873,1739010641748,-500.0,0.00010972,2]
[352227875,1739010641757,-150.0,0.00010972,2]
[352227877,1739010641766,-2142.21,0.00010972,2]
[352227879,1739010641776,-461.3869678,0.00010972,2]
[352227881,1739010641784,-502.26020834,0.00010972,2]
[352227883,1739010641794,-500.0,0.00010972,2]
[352227885,1739010641803,-500.0,0.00010972,2]
[352227886,1739010641812,-500.0,0.00010972,2]
[352227889,1739010641821,-500.0,0.00010972,2]
[352227891,1739010641831,-502.0,0.00010972,2]
[352227892,1739010641840,-846.65,0.00010972,2]
[352227894,1739010641848,-500.31000837,0.00010972,2]
[352227896,1739010641857,-500.0,0.00010972,2]
[352227898,1739010641866,-500.0,0.00010972,2]
[352227900,1739010641875,-500.0,0.00010972,2]
[352227902,1739010641884,-500.72141466,0.00010972,2]
[352227904,1739010641894,-794.27,0.00010972,2]
[352227906,1739010641903,-500.0,0.00010972,2]
[352227908,1739010641914,-500.0,0.00010972,2]
[352227910,1739010641924,-883.83,0.00010972,2]
[352227913,1739010641933,-500.0,0.00010972,2]
[352227914,1739010641943,-500.0,0.00010972,2]
[352227917,1739010641952,-500.0,0.00010972,2]
[352227919,1739010641962,-505.11373781,0.00010972,2]
[352227921,1739010641971,-503.54386586,0.00010972,2]
[352227923,1739010641981,-500.0,0.00010972,2]
[352227925,1739010641990,-500.0,0.00010972,2]
[352227926,1739010641999,-512.23,0.00010972,2]
[352227928,1739010642009,-500.0,0.00010972,2]
[352227930,1739010642018,-500.0,0.00010972,2]
[352227932,1739010642028,-747.48,0.00010972,2]
[352227934,1739010642037,-500.0,0.00010972,2]
[352227936,1739010642047,-500.0,0.00010972,2]
[352227939,1739010642058,-500.0,0.00010972,2]
[352227940,1739010642068,-505.24638007,0.00010972,2]
[352227942,1739010642077,-500.4717766,0.00010972,2]
[352227944,1739010642086,-771.17,0.00010972,2]
[352227946,1739010642096,-500.0,0.00010972,2]
[352227948,1739010642106,-977.19,0.00010972,2]
[352227950,1739010642115,-344.63567788,0.00010972,2]
[352227952,1739010642124,-500.0,0.00010972,2]
[352227954,1739010642134,-500.0,0.00010972,2]
[352227956,1739010642143,-500.0,0.00010972,2]
[352227958,1739010642152,-500.0,0.00010972,2]
[352227960,1739010642161,-500.0,0.00010972,2]
[352227962,1739010642170,-500.0,0.00010972,2]
[352227964,1739010642180,-500.0,0.00010972,2]
[352227966,1739010642189,-500.0,0.00010972,2]
[352227968,1739010642199,-500.0,0.00010972,2]
[352227970,1739010642209,-503.3523027,0.00010972,2]
[352227972,1739010642219,-500.0,0.00010972,2]
[352227974,1739010642230,-1064.06,0.00010972,2]
[352227976,1739010642239,-500.93798159,0.00010972,2]
[352227978,1739010642248,-500.0,0.00010972,2]
[352227980,1739010642258,-500.0,0.00010972,2]
[352227982,1739010642268,-500.0,0.00010972,2]
[352227984,1739010642278,-500.0,0.00010972,2]
[352227986,1739010642287,-360.10097584,0.00010972,2]
[352227988,1739010642296,-500.0,0.00010972,2]
[352227990,1739010642306,-382.70837513,0.00010972,2]
[352227993,1739010642315,-500.0,0.00010972,2]
[352227994,1739010642325,-500.0,0.00010972,2]
[352227996,1739010642335,-1679.98,0.00010972,2]
[352227998,1739010642345,-500.0,0.00010972,2]
[352228000,1739010642354,-500.0,0.00010972,2]
[352228003,1739010642364,-501.56687052,0.00010972,2]
[352228005,1739010642374,-500.0,0.00010972,2]
[352228007,1739010642383,-500.0,0.00010972,2]
[352228008,1739010642392,-500.0,0.00010972,2]
[352228011,1739010642402,-500.0,0.00010972,2]
[352228012,1739010642411,-556.04,0.00010972,2]
[352228014,1739010642420,-501.06423469,0.00010972,2]
[352228017,1739010642430,-500.0,0.00010972,2]
[352228018,1739010642439,-500.0,0.00010972,2]
[352228020,1739010642448,-890.36,0.00010972,2]
[352228022,1739010642457,-502.23657444,0.00010972,2]
[352228025,1739010642466,-500.0,0.00010972,2]
[352228028,1739010642476,-500.0,0.00010972,2]
[352228033,1739010642486,-502.70447892,0.00010972,2]
[352228035,1739010642497,-500.0,0.00010972,2]
[352228037,1739010642507,-500.0,0.00010972,2]
[352228040,1739010642516,-500.5973627,0.00010972,2]
[352228043,1739010642525,-500.0,0.00010972,2]
[352228046,1739010642536,-500.0,0.00010972,2]
[352228048,1739010642545,-429.18734656,0.00010972,2]
[352228051,1739010642556,-500.0,0.00010972,2]
[352228052,1739010642565,-500.0,0.00010972,2]
[352228055,1739010642576,-500.0,0.00010972,2]
[352228057,1739010642584,-500.0,0.00010972,2]
[352228059,1739010642593,-500.0,0.00010972,2]
[352228061,1739010642602,-500.0,0.00010972,2]
[352228062,1739010642611,-500.0,0.00010972,2]
[352228064,1739010642620,-500.0,0.00010972,2]
[352228067,1739010642629,-500.0,0.00010972,2]
[352228069,1739010642638,-500.0,0.00010972,2]
[352228070,1739010642647,-500.0,0.00010972,2]
[352228072,1739010642656,-501.67173376,0.00010972,2]
[352228074,1739010642665,-500.0,0.00010972,2]
[352228077,1739010642675,-500.0,0.00010972,2]
[352228078,1739010642685,-500.0,0.00010972,2]
[352228080,1739010642694,-399.212841,0.00010972,2]
[352228082,1739010642703,-500.0,0.00010972,2]
[352228084,1739010642712,-500.0,0.00010972,2]
[352228087,1739010642722,-500.0,0.00010972,2]
[352228088,1739010642730,-500.0,0.00010972,2]
[352228090,1739010642739,-500.0,0.00010972,2]
[352228092,1739010642748,-500.0,0.00010972,2]
[352228094,1739010642757,-500.0,0.00010972,2]
[352228096,1739010642766,-547.23,0.00010972,2]
[352228098,1739010642775,-500.0,0.00010972,2]
[352228100,1739010642785,-500.0,0.00010972,2]
[352228102,1739010642793,-500.0,0.00010972,2]
[352228104,1739010642802,-500.0,0.00010972,2]
[352228106,1739010642812,-500.0,0.00010972,2]
[352228108,1739010642821,-500.0,0.00010972,2]
[352228111,1739010642831,-500.0,0.00010972,2]
[352228113,1739010642841,-500.0,0.00010972,2]
[352228114,1739010642850,-500.0,0.00010972,2]
[352228116,1739010642859,-500.0,0.00010972,2]
[352228118,1739010642869,-500.0,0.00010972,2]
[352228121,1739010642878,-500.0,0.00010972,2]
[352228123,1739010642887,-500.0,0.00010972,2]
[352228125,1739010642896,-501.11145957,0.00010972,2]
[352228126,1739010642905,-500.0,0.00010972,2]
[352228128,1739010642915,-208.63554321,0.00010972,2]
[352228130,1739010642924,-500.0,0.00010972,2]
[352228133,1739010642934,-500.0,0.00010972,2]
[352228135,1739010642944,-500.0,0.00010972,2]
[352228137,1739010642953,-500.0,0.00010972,2]
[352228139,1739010642963,-500.0,0.00010972,2]
[352228141,1739010642974,-502.75905995,0.00010972,2]
[352228143,1739010642983,-500.0,0.00010972,2]
[352228145,1739010642999,-500.0,0.00010972,2]
[352228147,1739010643008,-500.0,0.00010972,2]
[352228149,1739010643017,-500.0,0.00010972,2]
[352228151,1739010643027,-500.0,0.00010972,2]
[352228153,1739010643035,-500.0,0.00010972,2]
[352228155,1739010643045,-171.79068653,0.00010972,2]
[352228157,1739010643055,-500.0,0.00010972,2]
[352228159,1739010643064,-1002.59,0.00010972,2]
[352228161,1739010643073,-500.0,0.00010972,2]
[352228163,1739010643082,-501.74440608,0.00010972,2]
[352228165,1739010643091,-500.0,0.00010972,2]
[352228167,1739010643100,-500.0,0.00010972,2]
[352228169,1739010643109,-500.0,0.00010972,2]
[352228171,1739010643118,-967.01,0.00010972,2]
[352228173,1739010643127,-500.0,0.00010972,2]
[352228175,1739010643136,-592.27,0.00010972,2]
[352228177,1739010643145,-500.42672999,0.00010972,2]
[352228179,1739010643154,-500.0,0.00010972,2]
[352228181,1739010643163,-504.42882019,0.00010972,2]
[352228183,1739010643172,-869.81,0.00010972,2]
[352228185,1739010643181,-2327.12,0.00010972,2]
[352228187,1739010643190,-500.0,0.00010972,2]
[352228189,1739010643199,-500.0,0.00010972,2]
[352228191,1739010643208,-500.0,0.00010972,2]
[352228193,1739010643217,-500.0,0.00010972,2]
[352228195,1739010643226,-500.0,0.00010972,2]
[352228197,1739010643235,-501.63078799,0.00010972,2]
[352228199,1739010643245,-501.97286133,0.00010972,2]
[352228201,1739010643254,-500.0,0.00010972,2]
[352228203,1739010643263,-500.0,0.00010972,2]
[352228205,1739010643272,-500.0,0.00010972,2]
[352228207,1739010643281,-1191.37,0.00010972,2]
[352228209,1739010643290,-500.0,0.00010972,2]
[352228211,1739010643299,-580.14,0.00010972,2]
[352228213,1739010643308,-500.0,0.00010972,2]
[352228215,1739010643317,-502.44934924,0.00010972,2]
[352228217,1739010643326,-500.0,0.00010972,2]
[352228219,1739010643335,-500.0,0.00010972,2]
[352228221,1739010643344,-500.0,0.00010972,2]
[352228223,1739010643352,-502.42147864,0.00010972,2]
[352228225,1739010643361,-500.0,0.00010972,2]
[352228227,1739010643370,-500.0,0.00010972,2]
[352228229,1739010643379,-500.0,0.00010972,2]
[352228231,1739010643388,-500.0,0.00010972,2]
[352228233,1739010643397,-2464.98,0.00010972,2]
[352228235,1739010643406,-500.0,0.00010972,2]
[352228237,1739010643415,-500.0,0.00010972,2]
[352228239,1739010643424,-500.0,0.00010972,2]
[352228241,1739010643433,-500.0,0.00010972,2]
[352228243,1739010643442,-501.81073623,0.00010972,2]
[352228245,1739010643451,-500.0,0.00010972,2]
[352228247,1739010643460,-500.0,0.00010972,2]
[352228249,1739010643469,-619.1,0.00010972,2]
[352228251,1739010643478,-500.0,0.00010972,2]
[352228253,1739010643488,-583.36,0.00010972,2]
[352228254,1739010643500,-553.44490082,0.00010972,2]
[352228256,1739010643509,-414.36635827,0.00010972,2]
[352228258,1739010643519,-2215.4,0.00010972,2]
[352228260,1739010643528,-878.69,0.00010972,2]
[352228262,1739010643538,-500.0,0.00010972,2]
[352228264,1739010643547,-494.18392669,0.00010972,2]
[352228266,1739010643557,-805.13,0.00010972,2]
[352228268,1739010643567,-500.0,0.00010972,2]
[352228270,1739010643577,-1132.4,0.00010972,2]
[352228272,1739010643587,-1055.48,0.00010972,2]
[352228274,1739010643596,-503.02087173,0.00010972,2]
[352228275,1739010643605,-500.0,0.00010972,2]
[352228276,1739010643614,-2081.64,0.00010972,2]
[352228277,1739010643623,-787.82,0.00010972,2]
[352228278,1739010643631,-503.16763215,0.00010972,2]
[352228279,1739010643640,-538.40206965,0.00010972,2]
[352228280,1739010643649,-500.0,0.00010972,2]
[352228281,1739010643658,-500.0,0.00010972,2]
[352228282,1739010643668,-500.0,0.00010972,2]
[352228283,1739010643677,-500.0,0.00010972,2]
[352228284,1739010643686,-1070.03,0.00010972,2]
[352228285,1739010643695,-500.0,0.00010972,2]
[352228286,1739010643703,-647.14,0.00010972,2]
[352228287,1739010643713,-562.07,0.00010972,2]
[352228288,1739010643722,-501.69971564,0.00010972,2]
[352228289,1739010643731,-500.0,0.00010972,2]
[352228291,1739010643741,-973.11,0.00010972,2]
[352228293,1739010643750,-363.91530641,0.00010972,2]
[352228295,1739010643759,-500.0,0.00010972,2]
[352228297,1739010643768,-1102.41,0.00010972,2]
[352228299,1739010643777,-271.72973604,0.00010972,2]
[352228301,1739010643786,-500.0,0.00010972,2]
[352228303,1739010643795,-1008.18,0.00010972,2]
[352228305,1739010643805,-511.51689646,0.00010972,2]
[352228307,1739010643816,-500.0,0.00010972,2]
[352228309,1739010643825,-500.0,0.00010972,2]
[352228311,1739010643835,-500.0,0.00010972,2]
[352228313,1739010643843,-501.79173822,0.00010972,2]
[352228315,1739010643853,-500.0,0.00010972,2]
[352228317,1739010643862,-703.77,0.00010972,2]
[352228319,1739010643871,-500.0,0.00010972,2]
[352228320,1739010643881,-500.0,0.00010972,2]
[352228322,1739010643891,-500.0,0.00010972,2]
[352228324,1739010643900,-500.0,0.00010972,2]
[352228326,1739010643909,-2630.46,0.00010972,2]
[352228328,1739010643918,-500.0,0.00010972,2]
[352228330,1739010643928,-502.32803062,0.00010972,2]
[352228332,1739010643937,-519.08462393,0.00010972,2]
[352228334,1739010643946,-500.0,0.00010972,2]
[352228335,1739010643955,-682.87,0.00010972,2]
[352228337,1739010643964,-500.0,0.00010972,2]
[352228339,1739010643973,-500.0,0.00010972,2]
[352228341,1739010643982,-500.96730015,0.00010972,2]
[352228343,1739010643991,-500.0,0.00010972,2]
[352228345,1739010644001,-6905.36,0.00010972,2]
[352228347,1739010644010,-500.0,0.00010972,2]
[352228349,1739010644019,-500.0,0.00010972,2]
[352228351,1739010644028,-500.0,0.00010972,2]
[352228353,1739010644038,-500.0,0.00010972,2]
[352228355,1739010644047,-500.0,0.00010972,2]
[352228357,1739010644056,-500.0,0.00010972,2]
[352228359,1739010644065,-2015.3,0.00010972,2]
[352228360,1739010644074,-1778.08,0.00010972,2]
[352228362,1739010644083,-500.0,0.00010972,2]
[352228364,1739010644092,-665.71,0.00010972,2]
[352228366,1739010644102,-304.38507769,0.00010972,2]
[352228368,1739010644111,-500.0,0.00010972,2]
[352228370,1739010644121,-500.0,0.00010972,2]
[352228372,1739010644130,-925.92,0.00010972,2]
[352228374,1739010644139,-500.0,0.00010972,2]
[352228376,1739010644148,-500.0,0.00010972,2]
[352228378,1739010644157,-1991.69,0.00010972,2]
[352228380,1739010644166,-502.42603586,0.00010972,2]
[352228382,1739010644175,-504.27920295,0.00010972,2]
[352228384,1739010644184,-500.0,0.00010972,2]
[352228386,1739010644194,-502.63941911,0.00010972,2]
[352228388,1739010644203,-500.0,0.00010972,2]
[352228390,1739010644212,-919.2,0.00010972,2]
[352228392,1739010644222,-500.0,0.00010972,2]
[352228393,1739010644231,-501.24485497,0.00010972,2]
[352228395,1739010644240,-4888.5,0.00010972,2]
[352228397,1739010644250,-428.19973072,0.00010972,2]
[352228399,1739010644259,-500.0,0.00010972,2]
[352228401,1739010644268,-552.68768989,0.00010972,2]
[352228403,1739010644277,-500.0,0.00010972,2]
[352228405,1739010644286,-735.74,0.00010972,2]
[352228407,1739010644295,-500.0,0.00010972,2]
[352228409,1739010644304,-500.0,0.00010972,2]
[352228411,1739010644314,-500.0,0.00010972,2]
[352228413,1739010644323,-505.58233944,0.00010972,2]
[352228415,1739010644333,-2162.58,0.00010972,2]
[352228417,1739010644343,-500.0,0.00010972,2]
[352228419,1739010644352,-500.52449052,0.00010972,2]
[352228421,1739010644362,-500.0,0.00010972,2]
[352228423,1739010644371,-1928.01,0.00010972,2]
[352228425,1739010644380,-752.96,0.00010972,2]
[352228427,1739010644389,-500.0,0.00010972,2]
[352228429,1739010644399,-3072.15,0.00010972,2]
[352228431,1739010644408,-500.0,0.00010972,2]
[352228433,1739010644417,-415.93680938,0.00010972,2]
[352228435,1739010644426,-2750.77,0.00010972,2]
[352228437,1739010644436,-500.0,0.00010972,2]
[352228439,1739010644445,-508.24726198,0.00010972,2]
[352228441,1739010644456,-500.0,0.00010972,2]
[352228443,1739010644465,-500.0,0.00010972,2]
[352228445,1739010644474,-1561.73,0.00010972,2]
[352228447,1739010644484,-505.35328746,0.00010972,2]
[352228449,1739010644500,-500.0,0.00010972,2]
[352228451,1739010644510,-275.91745255,0.00010972,2]
[352228453,1739010644519,-500.0,0.00010972,2]
[352228455,1739010644529,-917.63,0.00010972,2]
[352228477,1739010644745,-500.0,0.00010972,2]
[352228479,1739010644755,-500.0,0.00010972,2]
[352228482,1739010644765,-2118.74,0.00010972,2]
[352228483,1739010644775,-500.0,0.00010972,2]
[352228485,1739010644784,-512.9,0.00010972,2]
[352228487,1739010644794,-500.0,0.00010972,2]
[352228490,1739010644804,-500.0,0.00010972,2]
[352228491,1739010644814,-604.84413942,0.00010972,2]
[352228494,1739010644824,-500.0,0.00010972,2]
[352228495,1739010644834,-503.33734832,0.00010972,2]
[352228498,1739010644844,-500.0,0.00010972,2]
[352228499,1739010644854,-2755.09,0.00010972,2]
[352228501,1739010644864,-502.31934543,0.00010972,2]
[352228504,1739010644874,-500.0,0.00010972,2]
[352228505,1739010644883,-500.0,0.00010972,2]
[352228507,1739010644893,-1847.03,0.00010972,2]
[352228509,1739010644902,-500.0,0.00010972,2]
[352228511,1739010644912,-1670.08,0.00010972,2]
[352228513,1739010644922,-661.95,0.00010972,2]
[352228515,1739010644931,-508.0070212,0.00010972,2]
[352228517,1739010644941,-500.0,0.00010972,2]
[352228519,1739010644950,-500.98616788,0.00010972,2]
[352228521,1739010644959,-502.91850432,0.00010972,2]
[352228523,1739010644969,-2296.06,0.00010972,2]
[352228525,1739010644978,-1627.18,0.00010972,2]
[352228527,1739010644988,-500.0,0.00010972,2]
[352228529,1739010644997,-506.39779379,0.00010972,2]
[352228531,1739010645006,-1112.3,0.00010972,2]
[352228533,1739010645015,-2983.94,0.00010972,2]
[352228535,1739010645024,-500.0,0.00010972,2]
[352228537,1739010645034,-500.0,0.00010972,2]
[352228538,1739010645044,-250.75602966,0.00010972,2]
[352228540,1739010645054,-500.89340882,0.00010972,2]
[352228542,1739010645064,-500.0,0.00010972,2]
[352228545,1739010645074,-690.74,0.00010972,2]
[352228546,1739010645084,-500.0,0.00010972,2]
[352228548,1739010645093,-1743.31,0.00010972,2]
[352228550,1739010645103,-500.0,0.00010972,2]
[352228552,1739010645112,-1158.69,0.00010972,2]
[352228554,1739010645121,-300.81101874,0.00010972,2]
[352228556,1739010645131,-500.0,0.00010972,2]
[352228558,1739010645140,-500.0,0.00010972,2]
[352228560,1739010645150,-2810.05,0.00010972,2]
[352228563,1739010645160,-500.0,0.00010972,2]
[352228565,1739010645169,-2874.16,0.00010972,2]
[352228566,1739010645178,-504.18257064,0.00010972,2]
[352228568,1739010645188,-742.13,0.00010972,2]
[352228570,1739010645197,-524.97,0.00010972,2]
[352228572,1739010645206,-504.05326971,0.00010972,2]
[352228574,1739010645215,-500.0,0.00010972,2]
[352228576,1739010645225,-500.0,0.00010972,2]
[352228578,1739010645234,-934.52,0.00010972,2]
[352228580,1739010645243,-3134.72,0.00010972,2]
[352228582,1739010645253,-499.34747969,0.00010972,2]
[352228584,1739010645262,-5372.62,0.00010972,2]
[352228586,1739010645272,-500.0,0.00010972,2]
[352228588,1739010645281,-500.0,0.00010972,2]
[352228590,1739010645291,-501.35612067,0.00010972,2]
[352228592,1739010645299,-810.24,0.00010972,2]
[352228594,1739010645309,-2726.55,0.00010972,2]
[352228596,1739010645319,-2322.59,0.00010972,2]
[352228598,1739010645329,-500.0,0.00010972,2]
[352228600,1739010645338,-500.0,0.00010972,2]
[352228602,1739010645347,-500.0,0.00010972,2]
[352228604,1739010645356,-500.0,0.00010972,2]
[352228606,1739010645366,-2367.46,0.00010972,2]
[352228608,1739010645375,-500.0,0.00010972,2]
[352228610,1739010645385,-500.0,0.00010972,2]
[352228612,1739010645394,-559.45588423,0.00010972,2]
[352228614,1739010645403,-2966.69,0.00010972,2]
[352228616,1739010645412,-500.0,0.00010972,2]
[352228618,1739010645421,-500.0,0.00010972,2]